bitfinex-derivatives/quotes_SOLF0:USTF0_20240920
["timestamp","ask_amount","ask_price","bid_price","bid_amount"]
[1726791583817,3.5017,142.75,142.71,3.5027]
[1726791584014,10.75,142.73,142.71,3.5027]
[1726791584611,2.8869,142.83,142.69,12.1893]
[1726791584818,2.8869,142.83,142.74,10.75]
[1726791585118,10.75,142.78,142.74,10.75]
[1726791585313,10.75,142.78,142.76,3.5014]
[1726791585510,10.75,142.8,142.75,10.75]
[1726791585711,10.75,142.8,142.77,3.501]
[1726791585915,10.75,142.79,142.69,1.4393]
[1726791586118,10.75,142.78,142.74,10.75]
[1726791586829,10.75,142.78,142.76,3.5014]
[1726791588118,10.75,142.78,142.75,3.5016]
[1726791589925,10.75,142.78,142.73,10.75]
[1726791590317,10.75,142.78,142.76,3.5013]
[1726791591021,10.75,142.78,142.73,10.75]
[1726791591328,10.75,142.76,142.71,10.75]
[1726791591727,10.75,142.76,142.73,3.502]
[1726791591928,10.75,142.76,142.71,10.75]
[1726791593234,10.75,142.76,142.74,3.5018]
[1726791593529,10.75,142.77,142.72,10.75]
[1726791594129,10.75,142.77,142.75,3.5015]
[1726791596023,10.75,142.76,142.71,10.75]
[1726791596932,10.75,142.76,142.73,3.502]
[1726791597728,10.75,142.74,142.73,3.502]
[1726791598036,10.75,142.74,142.72,3.5023]
[1726791598231,2.8869,142.83,142.69,1.4393]
[1726791598232,10.75,142.73,142.69,1.4393]
[1726791598731,2.8869,142.83,142.66,10.75]
[1726791598935,2.8869,142.83,142.68,10.75]
[1726791598936,10.75,142.73,142.68,10.75]
[1726791599124,10.75,142.73,142.71,3.5025]
[1726791600537,3.5014,142.77,142.68,10.75]
[1726791600838,10.75,142.75,142.7,10.75]
[1726791601031,10.75,142.75,142.72,3.5023]
[1726791601437,10.75,142.75,142.7,10.75]
[1726791601745,10.75,142.74,142.69,10.75]
[1726791602130,2.8869,142.83,142.69,10.75]
[1726791602441,10.75,142.78,142.72,10.75]
[1726791602838,10.75,142.78,142.74,10.75]
[1726791603041,10.75,142.78,142.75,3.5016]
[1726791604739,10.75,142.76,142.7,10.75]
[1726791604937,10.75,142.76,142.65,2.8131]
[1726791604938,10.75,142.74,142.69,10.75]
[1726791605444,10.75,142.74,142.72,3.5024]
[1726791606648,3.501,142.78,142.73,3.5022]
[1726791606851,10.75,142.75,142.73,3.5022]
[1726791607540,10.75,142.74,142.72,3.5024]
[1726791609555,10.75,142.76,142.71,10.75]
[1726791610348,10.75,142.76,142.73,3.502]
[1726791610849,10.75,142.74,142.66,3.46405719]
[1726791611044,10.75,142.74,142.69,10.75]
[1726791611244,10.75,142.74,142.72,3.5022]
[1726791611941,10.75,142.77,142.72,10.75]
[1726791612151,10.75,142.75,142.71,10.75]
[1726791612340,10.75,142.75,142.73,3.5021]
[1726791612950,10.75,142.74,142.72,3.5023]
[1726791616150,10.75,142.74,142.71,3.5026]
[1726791617254,10.75,142.74,142.72,3.5024]
[1726791617549,10.75,142.74,142.66,3.42295822]
[1726791617856,10.75,142.71,142.65,2.8131]
[1726791618045,10.75,142.71,142.65,13.5631]
[1726791618547,10.75,142.71,142.69,3.503]
[1726791621060,10.75,142.71,142.66,10.75]
[1726791622254,10.75,142.75,142.7,10.75]
[1726791623355,10.75,142.75,142.71,3.5026]
[1726791624053,10.75,142.75,142.72,3.5024]
[1726791629357,3.58338189,142.78,142.7,10.75]
[1726791629554,2.8126,142.82,142.73,10.75]
[1726791629762,10.75,142.8,142.75,10.75]
[1726791630158,10.75,142.8,142.77,3.5011]
[1726791630462,1.3516,142.85,142.76,10.75]
[1726791630662,1.3516,142.85,142.71,2.8081]
[1726791630857,10.75,142.83,142.79,10.75]
[1726791631360,10.75,142.84,142.79,10.75]
[1726791631862,1.3233,142.87,142.79,10.75]
[1726791632057,10.75,142.84,142.79,10.75]
[1726791632760,10.75,142.84,142.8,3.5003]
[1726791633062,1.3233,142.87,142.71,2.8081]
[1726791633063,10.75,142.81,142.75,10.75]
[1726791633365,1.3233,142.87,142.71,2.8081]
[1726791633366,1.3233,142.87,142.78,10.75]
[1726791633565,10.75,142.83,142.78,10.75]
[1726791633860,10.75,142.81,142.77,3.5011]
[1726791634055,20.3099,142.83,142.77,3.5011]
[1726791634260,16.81,142.83,142.77,3.5011]
[1726791634456,16.81,142.81,142.76,3.5014]
[1726791635162,20.3104,142.81,142.72,16.81]
[1726791636166,3.5005,142.8,142.72,16.81]
[1726791636667,3.5005,142.8,142.74,3.5018]
[1726791637064,3.5005,142.8,142.72,16.81]
[1726791638263,3.5005,142.8,142.74,3.5018]
[1726791638770,3.5005,142.8,142.72,16.81]
[1726791639068,3.5005,142.8,142.74,3.5018]
[1726791640166,3.5005,142.8,142.75,3.5016]
[1726791642271,20.3103,142.81,142.76,3.5014]
[1726791645072,3.5005,142.8,142.76,3.5014]
[1726791645374,16.81,142.81,142.76,3.5014]
[1726791645873,3.501,142.78,142.72,16.81]
[1726791646070,16.81,142.79,142.71,2.8081]
[1726791646272,20.27262455,142.79,142.71,2.8081]
[1726791646771,16.81,142.81,142.72,16.81]
[1726791646976,3.4759356,142.8,142.72,16.81]
[1726791647771,6.9766356,142.8,142.75,3.5016]
[1726791649475,3.5007,142.8,142.75,3.5016]
[1726791650777,16.81,142.81,142.75,3.5016]
[1726791650977,3.5009,142.79,142.72,16.81]
[1726791651385,3.5009,142.79,142.74,3.5018]
[1726791652471,3.47793318,142.8,142.73,3.5022]
[1726791652472,3.5011,142.78,142.73,3.5022]
[1726791652670,3.47793318,142.8,142.72,16.81]
[1726791653482,3.5008,142.79,142.74,3.5018]
[1726791653982,3.501,142.78,142.73,3.5021]
[1726791655080,3.5008,142.79,142.74,3.5019]
[1726791655282,3.47793318,142.8,142.74,3.5019]
[1726791655486,3.5007,142.79,142.74,3.5019]
[1726791655781,7.00805672,142.79,142.74,3.5019]
[1726791655984,3.5007,142.8,142.75,3.5017]
[1726791656185,16.47107454,142.87,142.75,10.77]
[1726791656391,10.77,142.79,142.75,10.77]
[1726791657480,10.77,142.79,142.75,14.2716]
[1726791661081,10.77,142.78,142.75,3.5016]
[1726791661283,14.2711,142.78,142.73,10.77]
[1726791661587,10.77,142.75,142.71,13.5781]
[1726791662086,10.77,142.75,142.72,3.5023]
[1726791662283,14.2713,142.77,142.72,14.2723]
[1726791665490,10.77,142.77,142.73,10.77]
[1726791665988,10.77,142.77,142.74,3.5018]
[1726791667090,10.77,142.77,142.73,14.2721]
[1726791667480,10.77,142.77,142.73,3.5021]
[1726791667990,10.77,142.76,142.72,3.5023]
[1726791668987,10.77,142.75,142.72,3.5023]
[1726791669194,10.77,142.73,142.63,233.7479693]
[1726791669391,10.77,142.72,142.67,10.77]
[1726791669893,10.77,142.73,142.69,10.77]
[1726791670388,10.77,142.73,142.7,3.5029]
[1726791671986,10.77,142.73,142.69,14.2731]
[1726791674090,3.5018,142.75,142.7,3.5028]
[1726791674285,1.3787,142.77,142.7,10.77]
[1726791674489,10.77,142.75,142.7,10.77]
[1726791675289,10.77,142.75,142.71,3.5025]
[1726791679610,10.77,142.74,142.71,3.5025]
[1726791691312,10.77,142.73,142.7,3.5028]
[1726791693106,10.77,142.73,142.71,3.5027]
[1726791693307,10.77,142.74,142.71,3.5027]
[1726791695812,10.77,142.73,142.7,3.5028]
[1726791696124,10.77,142.73,142.66,1.3599]
[1726791696322,10.77,142.71,142.68,3.5034]
[1726791696820,4.84033207,142.77,142.7,10.77]
[1726791697022,10.77,142.76,142.72,10.77]
[1726791697220,10.77,142.76,142.73,10.77]
[1726791697421,10.77,142.76,142.73,14.2722]
[1726791697714,1.4114,142.82,142.73,10.77]
[1726791698022,10.77,142.81,142.76,10.77]
[1726791698212,15.14981704,142.86,142.79,10.77]
[1726791698410,10.77,142.84,142.79,10.77]
[1726791698626,10.77,142.84,142.8,10.77]
[1726791699520,10.77,142.84,142.8,14.2703]
[1726791699921,10.77,142.81,142.76,2.8295]
[1726791700116,10.77,142.81,142.77,10.77]
[1726791700317,10.77,142.81,142.78,3.5008]
[1726791700717,10.77,142.81,142.77,14.271]
[1726791701916,10.77,142.81,142.76,2.8295]
[1726791701917,10.77,142.81,142.78,10.77]
[1726791702417,10.77,142.82,142.78,10.77]
[1726791702623,10.77,142.83,142.78,10.77]
[1726791702814,6.35494246,142.88,142.8,10.77]
[1726791703017,14.2691,142.86,142.81,3.5002]
[1726791703215,14.2691,142.86,142.82,10.77]
[1726791704109,14.2691,142.86,142.81,3.5002]
[1726791704110,10.77,142.85,142.81,3.5002]
[1726791704623,10.77,142.85,142.8,10.77]
[1726791705216,14.269,142.86,142.81,14.27]
[1726791706123,10.77,142.86,142.81,10.77]
[1726791707424,14.2691,142.86,142.81,14.2701]
[1726791707823,10.77,142.86,142.83,3.4997]
[1726791708027,1.4475,142.88,142.76,2.8295]
[1726791708028,10.77,142.88,142.84,10.77]
[1726791708215,10.77,142.89,142.85,10.77]
[1726791708423,10.77,142.89,142.85,14.2691]
[1726791709823,14.2683,142.89,142.85,14.2691]
[1726791710027,10.77,142.88,142.85,3.4991]
[1726791710228,10.77,142.88,142.84,14.2694]
[1726791710529,10.77,142.85,142.8,10.77]
[1726791711221,10.77,142.85,142.81,10.77]
[1726791711626,10.77,142.85,142.81,14.27]
[1726791712026,10.77,142.86,142.81,14.27]
[1726791716132,14.2691,142.86,142.81,14.27]
[1726791716328,6.38281106,142.94,142.76,2.8295]
[1726791716329,10.77,142.85,142.8,3.5004]
[1726791716529,10.77,142.85,142.8,14.2704]
[1726791716737,10.77,142.84,142.8,14.2704]
[1726791719034,14.2695,142.84,142.8,3.5004]
[1726791719238,14.2695,142.84,142.8,14.2704]
[1726791719443,10.77,142.81,142.76,2.8295]
[1726791719633,10.77,142.8,142.76,13.5995]
[1726791719832,15.14602425,142.9,142.79,10.77]
[1726791720033,10.77,142.85,142.8,14.2704]
[1726791720435,14.2694,142.85,142.8,14.2704]
[1726791720636,10.77,142.85,142.8,14.2704]
[1726791720836,10.77,142.83,142.79,10.77]
[1726791721036,10.77,142.82,142.78,10.77]
[1726791721331,10.77,142.82,142.78,14.2708]
[1726791721535,10.77,142.81,142.76,2.8295]
[1726791721737,10.77,142.81,142.77,10.77]
[1726791722144,10.77,142.81,142.77,14.2711]
[1726791722940,14.2705,142.8,142.76,2.8295]
[1726791723139,10.77,142.78,142.72,140.06]
[1726791723437,10.77,142.75,142.7,10.77]
[1726791723647,10.77,142.75,142.71,14.2725]
[1726791724642,14.2713,142.77,142.72,3.5024]
[1726791725039,10.77,142.79,142.74,10.77]
[1726791725434,3.5009,142.79,142.75,10.77]
[1726791725946,10.77,142.8,142.74,3.5018]
[1726791725947,3.5006,142.8,142.74,3.5018]
[1726791726244,3.5006,142.8,142.73,16.82]
[1726791726441,20.30910919,142.82,142.74,2.7918]
[1726791726745,3.5004,142.81,142.75,3.5015]
[1726791726947,20.30910919,142.82,142.75,3.5015]
[1726791727339,3.5006,142.8,142.75,3.5015]
[1726791727537,3.5006,142.8,142.74,6.2936]
[1726791728746,3.5006,142.8,142.74,2.7918]
[1726791728747,16.82,142.8,142.74,2.7918]
[1726791729644,3.5011,142.78,142.74,2.7918]
[1726791731245,3.5011,142.78,142.73,3.5021]
[1726791731442,3.5011,142.78,142.72,3.5024]
[1726791731443,16.82,142.78,142.72,3.5024]
[1726791731639,2.7691,142.81,142.68,2.655]
[1726791731844,16.82,142.77,142.68,19.475]
[1726791733737,3.5015,142.76,142.71,3.5027]
[1726791735749,3.5015,142.76,142.68,19.475]
[1726791735750,16.82,142.8,142.7,16.82]
[1726791736136,3.5012,142.77,142.72,3.5023]
[1726791736951,16.82,142.8,142.72,16.82]
[1726791737445,3.5009,142.79,142.74,3.5018]
[1726791740149,3.5011,142.78,142.74,3.5018]
[1726791740652,3.5011,142.78,142.73,3.5021]
[1726791741047,3.5011,142.78,142.72,16.82]
[1726791741450,20.3207,142.8,142.75,3.5017]
[1726791741752,16.82,142.8,142.72,16.82]
[1726791742051,3.5009,142.79,142.74,3.5018]
[1726791743659,16.82,142.8,142.72,16.82]
[1726791744855,3.5008,142.79,142.74,3.5018]
[1726791745263,16.82,142.8,142.72,16.82]
[1726791745563,16.82,142.8,142.74,3.5018]
[1726791746059,3.5009,142.79,142.73,6.3689]
[1726791748063,10.76,142.78,142.75,10.76]
[1726791750265,10.76,142.77,142.74,10.76]
[1726791752563,14.2613,142.77,142.74,10.76]
[1726791752867,10.76,142.77,142.74,10.76]
[1726791753358,14.2613,142.77,142.74,10.76]
[1726791753563,10.76,142.77,142.73,13.6268]
[1726791754161,14.2613,142.77,142.73,13.6268]
[1726791755870,14.2613,142.77,142.73,17.129]
[1726791756972,10.76,142.75,142.64,147.1285]
[1726791757263,10.76,142.74,142.7,10.76]
[1726791759461,3.5024,142.73,142.7,10.76]
[1726791762571,14.262,142.74,142.7,10.76]
[1726791762773,10.76,142.75,142.7,10.76]
[1726791763472,14.2618,142.75,142.7,14.2628]
[1726791765074,3.5019,142.74,142.7,3.5028]
[1726791765267,3.5019,142.74,142.7,14.2628]
[1726791767075,14.2618,142.75,142.7,14.2628]
[1726791768969,10.76,142.76,142.71,10.76]
[1726791769272,10.76,142.76,142.72,14.2623]
[1726791770070,14.2615,142.76,142.72,14.2623]
[1726791770373,14.2615,142.76,142.72,10.76]
[1726791771174,10.76,142.75,142.71,14.2625]
[1726791771473,14.2619,142.75,142.7,14.2627]
[1726791773275,10.76,142.75,142.7,10.76]
[1726791773872,10.76,142.75,142.71,3.5025]
[1726791774367,10.76,142.75,142.72,10.76]
[1726791774772,10.76,142.75,142.71,3.5025]
[1726791774974,10.76,142.75,142.72,10.76]
[1726791775566,10.76,142.75,142.71,14.2625]
[1726791775767,10.76,142.74,142.65,2.7416]
[1726791775969,10.76,142.73,142.69,10.76]
[1726791776576,10.76,142.73,142.69,14.2632]
[1726791778476,14.2622,142.73,142.69,10.76]
[1726791779480,10.76,142.73,142.69,10.76]
[1726791779979,10.76,142.72,142.67,10.76]
[1726791780381,14.2625,142.72,142.67,14.2635]
[1726791780584,10.76,142.72,142.65,2.7416]
[1726791780781,10.76,142.72,142.68,10.76]
[1726791781880,14.2626,142.72,142.68,14.2634]
[1726791782778,10.76,142.72,142.68,14.2634]
[1726791785988,2.8377,142.8,142.71,10.76]
[1726791786286,10.76,142.75,142.71,10.76]
[1726791787384,3.502,142.74,142.71,10.76]
[1726791787888,10.76,142.74,142.7,3.5028]
[1726791788189,10.76,142.74,142.69,10.76]
[1726791788190,10.76,142.74,142.69,14.2631]
[1726791788590,3.5023,142.73,142.69,14.2631]
[1726791788788,3.5023,142.73,142.69,3.5031]
[1726791788993,10.76,142.72,142.69,3.5031]
[1726791789491,14.2625,142.72,142.68,3.5033]
[1726791789691,10.76,142.71,142.68,3.5033]
[1726791790188,10.76,142.71,142.67,3.5036]
[1726791794597,10.76,142.72,142.68,14.2634]
[1726791795091,14.2623,142.73,142.69,10.76]
[1726791796301,10.76,142.72,142.68,14.2634]
[1726791797988,10.76,142.72,142.67,3.5035]
[1726791797989,14.2625,142.72,142.67,3.5035]
[1726791798192,14.2625,142.72,142.67,14.2635]
[1726791801903,3.5023,142.73,142.7,10.76]
[1726791802201,10.76,142.74,142.7,10.76]
[1726791802394,14.2621,142.74,142.7,14.2629]
[1726791804097,9.8387,142.8,142.73,10.76]
[1726791804098,1.4371,142.8,142.73,10.76]
[1726791804302,10.76,142.78,142.73,10.76]
[1726791804490,10.76,142.77,142.73,10.76]
[1726791805095,14.2613,142.77,142.73,10.76]
[1726791806198,1.4358,142.84,142.76,10.76]
[1726791806199,10.76,142.81,142.76,10.76]
[1726791807194,15.14648261,142.88,142.8,10.76]
[1726791807394,10.76,142.85,142.81,10.76]
[1726791808102,10.76,142.86,142.81,10.76]
[1726791808497,3.4994,142.85,142.81,10.76]
[1726791808695,10.76,142.82,142.77,10.76]
[1726791810207,14.2601,142.82,142.77,14.2612]
[1726791811309,3.5003,142.81,142.77,10.76]
[1726791811508,3.5003,142.81,142.76,3.5014]
[1726791811509,10.76,142.8,142.76,14.2614]
[1726791812008,10.76,142.8,142.76,10.76]
[1726791812401,14.2605,142.8,142.76,10.76]
[1726791812603,10.76,142.78,142.74,2.756]
[1726791812804,6.9965,142.9,142.7,3.5370875]
[1726791812805,10.76,142.75,142.7,10.76]
[1726791814710,15.15308434,142.81,142.71,14.2626]
[1726791814711,10.76,142.76,142.71,14.2626]
[1726791814907,14.2613,142.77,142.72,10.76]
[1726791815408,10.76,142.77,142.72,10.76]
[1726791816015,3.5012,142.77,142.71,3.5026]
[1726791816713,3.5012,142.77,142.72,3.5024]
[1726791818310,3.5015,142.76,142.71,3.5026]
[1726791836918,3.5011,142.78,142.73,3.502]
[1726791837122,16.82,142.79,142.7,16.82]
[1726791837826,16.82,142.76,142.67,16.82]
[1726791838023,10.77,142.74,142.7,10.77]
[1726791838219,14.2721,142.74,142.7,10.77]
[1726791839230,3.5022,142.73,142.7,10.77]
[1726791841129,3.502,142.74,142.71,10.77]
[1726791841725,3.502,142.74,142.66,2.7633]
[1726791841726,10.77,142.74,142.69,3.5031]
[1726791842024,10.77,142.74,142.69,14.2731]
[1726791843133,3.5023,142.73,142.7,14.2729]
[1726791843330,10.77,142.75,142.71,10.77]
[1726791843637,10.77,142.75,142.7,14.2729]
[1726791843833,3.5023,142.73,142.7,10.77]
[1726791845137,10.77,142.72,142.67,3.5037]
[1726791845332,10.77,142.7,142.67,10.77]
[1726791845530,10.77,142.7,142.66,1.352]
[1726791845729,3.5032,142.69,142.66,1.352]
[1726791845925,3.48265625,142.72,142.66,12.122]
[1726791846130,10.77,142.71,142.66,12.122]
[1726791846334,3.5032,142.7,142.66,12.122]
[1726791847337,3.5032,142.7,142.66,15.6258]
[1726791850940,10.77,142.71,142.67,10.77]
[1726791851138,10.77,142.72,142.68,14.2733]
[1726791851939,14.2726,142.72,142.68,14.2733]
[1726791853638,3.5027,142.71,142.68,14.2733]
[1726791856437,14.2726,142.72,142.68,14.2733]
[1726791856643,14.2726,142.72,142.69,3.5031]
[1726791857043,14.2726,142.72,142.66,1.352]
[1726791857044,3.5023,142.73,142.7,10.77]
[1726791857244,10.77,142.74,142.71,3.5027]
[1726791857844,14.2721,142.74,142.71,3.5027]
[1726791858247,3.5022,142.73,142.71,3.5027]
[1726791858445,3.5022,142.73,142.7,14.2728]
[1726791858645,3.5022,142.73,142.7,3.5028]
[1726791859046,14.2722,142.73,142.7,3.5028]
[1726791860542,14.2725,142.72,142.69,3.5031]
[1726791860748,10.77,142.72,142.67,12.1101]
[1726791861748,3.5027,142.71,142.68,3.5033]
[1726791862549,3.5027,142.71,142.67,15.6136]
[1726791866349,3.5027,142.71,142.67,1.3401]
[1726791866556,10.77,142.7,142.66,1.352]
[1726791866942,14.2731,142.7,142.66,1.352]
[1726791867147,3.5031,142.7,142.66,1.352]
[1726791867350,14.2731,142.7,142.66,1.352]
[1726791871254,3.5032,142.69,142.66,1.352]
[1726791873849,3.5038,142.67,142.62,93.62307975]
[1726791874057,3.5038,142.67,142.63,10.77]
[1726791874350,14.2736,142.68,142.63,14.2745]
[1726791874545,3.5036,142.68,142.64,10.77]
[1726791875155,14.2733,142.69,142.64,14.2743]
[1726791875650,10.77,142.69,142.64,14.2743]
[1726791876449,10.77,142.67,142.62,104.39307975]
[1726791877055,14.2738,142.67,142.62,107.89777975]
[1726791877253,10.77,142.67,142.62,104.39307975]
[1726791878151,14.2738,142.67,142.62,107.89787975]
[1726791878554,3.44612944,142.71,142.62,93.62307975]
[1726791878555,10.77,142.66,142.62,93.62307975]
[1726791878757,10.77,142.65,142.62,93.62307975]
[1726791879560,10.77,142.64,142.62,93.62307975]
[1726791882762,2.6704,142.7,142.62,93.62307975]
[1726791883062,10.77,142.66,142.62,104.39307975]
[1726791883559,10.77,142.66,142.62,93.62307975]
[1726791883560,16.18240953,142.65,142.62,93.62307975]
[1726791883761,5.41240953,142.64,142.62,93.62307975]
[1726791883962,19.68690953,142.64,142.6,10.77]
[1726791884262,5.41240953,142.63,142.6,10.77]
[1726791885357,5.41240953,142.62,142.6,10.77]
[1726791885662,10.77,142.65,142.61,3.505]
[1726791885859,5.41280932,142.64,142.61,3.505]
[1726791886056,5.41280932,142.63,142.61,3.505]
[1726791886255,5.41280932,142.62,142.61,3.505]
[1726791889258,14.2742,142.65,142.61,3.505]
[1726791889456,5.41281925,142.64,142.61,3.505]
[1726791889665,5.41281925,142.63,142.61,3.505]
[1726791889861,10.77,142.65,142.62,3.5049]
[1726791890065,5.41250654,142.64,142.6,10.77]
[1726791890267,5.41250654,142.63,142.6,10.77]
[1726791890471,10.77,142.65,142.61,3.505]
[1726791890972,5.41253015,142.64,142.61,3.505]
[1726791891173,14.2742,142.65,142.61,3.505]
[1726791891773,5.41334412,142.64,142.61,3.505]
[1726791891970,14.2742,142.65,142.61,3.505]
[1726791892374,5.41331123,142.64,142.61,3.505]
[1726791892571,14.2742,142.65,142.61,3.505]
[1726791893877,5.41315373,142.64,142.61,3.505]
[1726791894076,5.41315373,142.63,142.61,3.505]
[1726791894272,5.41315373,142.64,142.61,3.505]
[1726791894573,5.41315373,142.63,142.61,3.505]
[1726791894782,5.41315373,142.62,142.6,3.5053]
[1726791894972,5.41315373,142.61,142.6,3.5053]
[1726791895375,5.41315373,142.63,142.6,3.5053]
[1726791895673,5.41315373,142.62,142.59,17.1069]
[1726791895979,5.41315373,142.61,142.59,2.8314]
[1726791896176,10.77,142.63,142.59,2.8314]
[1726791896479,5.4137065,142.6,142.59,6.337]
[1726791896973,5.4137065,142.62,142.59,6.337]
[1726791898673,16.1837065,142.62,142.59,1.4058]
[1726791898877,16.1837065,142.62,142.57,10.77]
[1726791898878,5.4137065,142.61,142.57,10.77]
[1726791899078,10.77,142.62,142.57,10.77]
[1726791899375,5.41384853,142.6,142.57,14.2759]
[1726791899676,14.275,142.62,142.57,14.2759]
[1726791900275,5.41391231,142.59,142.57,3.5059]
[1726791900476,14.275,142.62,142.57,14.2759]
[1726791900780,5.41391374,142.61,142.57,14.2759]
[1726791901074,5.41391374,142.6,142.57,14.2759]
[1726791901282,5.41391374,142.59,142.58,14.2758]
[1726791902482,5.41391374,142.59,142.58,10.77]
[1726791903581,5.41391374,142.59,142.58,14.2759]
[1726791903781,10.77,142.64,142.55,2.7006]
[1726791903980,10.77,142.62,142.55,2.7006]
[1726791904178,5.41350192,142.61,142.57,10.77]
[1726791904384,5.41350192,142.61,142.55,2.7006]
[1726791904583,5.41350192,142.61,142.57,10.77]
[1726791904979,16.18350192,142.61,142.57,14.276]
[1726791905174,10.77,142.61,142.57,14.276]
[1726791905372,5.41406051,142.6,142.57,14.276]
[1726791905574,10.77,142.61,142.57,14.276]
[1726791905779,5.41408455,142.59,142.57,14.276]
[1726791905985,5.41408455,142.6,142.57,14.276]
[1726791906279,5.41408455,142.59,142.57,14.276]
[1726791906483,10.77,142.6,142.56,14.2763]
[1726791906785,5.41427807,142.59,142.56,14.2763]
[1726791906986,5.41427807,142.58,142.56,14.2763]
[1726791907180,5.41427807,142.59,142.56,14.2763]
[1726791907376,10.77,142.6,142.55,1.3515]
[1726791907377,5.4143606,142.58,142.55,15.628]
[1726791907581,14.2754,142.6,142.55,15.628]
[1726791907582,5.4143606,142.57,142.55,15.628]
[1726791907783,14.2754,142.6,142.55,15.628]
[1726791907984,5.41438229,142.59,142.55,15.628]
[1726791908186,5.41438229,142.58,142.55,15.628]
[1726791908387,5.41438229,142.57,142.55,15.628]
[1726791908582,10.77,142.59,142.55,15.628]
[1726791908785,5.41439031,142.58,142.55,15.628]
[1726791908987,10.77,142.59,142.55,15.628]
[1726791909185,14.2756,142.59,142.55,4.858]
[1726791909383,10.77,142.6,142.56,3.5063]
[1726791909585,5.41420683,142.59,142.56,3.5063]
[1726791909786,5.41420683,142.58,142.56,3.5063]
[1726791909986,10.77,142.6,142.56,3.5063]
[1726791910288,5.41417023,142.59,142.56,3.5063]
[1726791910488,10.77,142.6,142.56,3.5063]
[1726791910786,5.41417424,142.59,142.56,3.5063]
[1726791910982,5.41417424,142.58,142.56,3.5063]
[1726791911184,10.77,142.6,142.56,3.5063]
[1726791911388,5.41417424,142.59,142.56,3.5063]
[1726791911588,5.41417424,142.58,142.56,3.5063]
[1726791911788,10.77,142.59,142.55,4.858]
[1726791911989,5.41417664,142.58,142.55,15.628]
[1726791912289,10.77,142.59,142.55,15.628]
[1726791912483,14.2757,142.59,142.55,15.628]
[1726791912683,5.41417664,142.58,142.55,15.628]
[1726791912888,10.77,142.59,142.55,15.628]
[1726791913089,5.41414116,142.58,142.55,15.628]
[1726791913291,10.77,142.59,142.55,15.628]
[1726791913788,5.41414116,142.58,142.55,15.628]
[1726791913986,10.77,142.6,142.56,14.2762]
[1726791914187,5.41417553,142.59,142.56,14.2762]
[1726791914489,5.41417553,142.58,142.56,14.2762]
[1726791914692,10.77,142.6,142.56,14.2762]
[1726791914892,5.4141871,142.59,142.56,14.2762]
[1726791915090,5.4141871,142.58,142.56,14.2762]
[1726791915290,10.77,142.6,142.56,14.2762]
[1726791915492,5.41415963,142.59,142.56,14.2762]